bitfinex/quotes_ETHUSD_20250908
["timestamp","ask_amount","ask_price","bid_price","bid_amount"]
[1757354635597,5.26674356,4319.2,4319.1,0.002]
[1757354636397,4.83364356,4319.2,4319.1,0.002]
[1757354637661,5.26674356,4319.2,4319.1,0.002]
[1757354639697,4.83364356,4319.2,4319.1,0.002]
[1757354640363,5.26674356,4319.2,4319.1,0.002]
[1757354640559,0.9072,4319.2,4319.1,0.3114]
[1757354640978,3.22244356,4319.2,4319.1,0.3114]
[1757354641359,0.9072,4319.2,4319.1,0.3114]
[1757354641565,3.22244356,4319.2,4319.1,0.3114]
[1757354642102,3.22244356,4319.2,4319.1,0.002]
[1757354642505,0.9072,4319.2,4319.1,0.002]
[1757354642665,3.22244356,4319.2,4319.1,0.002]
[1757354643418,3.52654356,4319.2,4319.1,0.002]
[1757354643579,2.5242,4319.2,4319.1,0.002]
[1757354643931,0.9072,4319.2,4319.1,3.311]
[1757354644072,2.31494887,4319.8,4319.1,6.79359716]
[1757354644430,2.31494887,4319.8,4319.1,6.79358223]
[1757354644953,0.001,4319.9,4319.4,2.31510047]
[1757354645064,0.001,4319.9,4319.5,3.981]
[1757354645266,0.001,4319.9,4319.8,0.309]
[1757354645485,0.001,4319.9,4319.8,4.29]
[1757354647330,2.31586839,4319.9,4319.8,3.981]
[1757354647672,0.793,4319.9,4319.8,3.981]
[1757354647906,0.793,4319.9,4319.8,4.29]
[1757354648110,0.001,4319.9,4319.8,4.29]
[1757354648312,0.001,4319.9,4319.8,7.29]
[1757354649194,1.618,4319.9,4319.8,6.981]
[1757354649382,3.93286839,4319.9,4319.8,6.981]
[1757354649575,1.618,4319.9,4319.8,6.981]
[1757354649881,0.001,4319.9,4319.8,6.981]
[1757354650082,0.793,4319.9,4319.8,6.981]
[1757354650323,0.793,4319.9,4319.1,0.002]
[1757354650324,0.9072,4319.8,4319.1,0.002]
[1757354650523,0.792,4319.6,4319.3,3.0]
[1757354650667,3.41123636,4319.4,4319.3,3.0]
[1757354650867,5.15763636,4319.4,4319.3,3.0]
[1757354651161,2.409,4319.4,4319.3,3.0]
[1757354651524,0.001,4319.9,4319.3,3.7445]
[1757354651722,0.792,4319.8,4319.4,3.98]
[1757354652076,0.792,4319.6,4319.4,3.98]
[1757354652421,3.10704599,4319.6,4319.4,3.98]
[1757354652721,4.72408276,4319.5,4319.4,6.98]
[1757354652920,5.15758276,4319.5,4319.4,6.98]
[1757354655221,4.72408276,4319.5,4319.4,3.98]
[1757354655424,2.31518996,4319.3,4319.2,3.0]
[1757354655569,5.15768996,4319.3,4319.2,3.0]
[1757354658234,4.72418996,4319.3,4319.2,3.0]
[1757354658412,1.3139,4319.9,4319.2,3.309]
[1757354658572,0.001,4319.9,4319.3,4.7081]
[1757354658935,0.792,4319.6,4319.3,3.979]
[1757354659585,0.792,4319.4,4319.3,3.979]
[1757354660055,3.10713636,4319.4,4319.3,3.979]
[1757354660521,0.792,4319.4,4319.3,4.288]
[1757354660726,0.792,4319.6,4319.3,4.288]
[1757354660886,0.792,4319.4,4319.3,4.288]
[1757354661505,3.1069251,4319.8,4319.3,5.49605]
[1757354661715,0.792,4319.7,4319.3,4.288]
[1757354661899,3.10713636,4319.4,4319.3,3.979]
[1757354662108,0.792,4319.4,4319.3,4.288]
[1757354662447,2.31486273,4320.0,4319.3,7.7235]
[1757354662448,0.792,4320.0,4319.3,7.7235]
[1757354662590,0.792,4320.0,4319.4,4.20805]
[1757354662912,1.7464,4320.5,4319.5,3.979]
[1757354662913,3.10693712,4319.8,4319.5,3.979]
[1757354663117,0.793,4319.9,4319.7,0.309]
[1757354663288,0.793,4319.9,4319.8,6.979]
[1757354663493,0.793,4319.9,4319.8,7.288]
[1757354664337,3.10786839,4319.9,4319.8,7.288]
[1757354665145,3.10786839,4319.9,4319.8,6.979]
[1757354665603,0.793,4319.9,4319.8,6.979]
[1757354665805,3.10786839,4319.9,4319.8,6.979]
[1757354666199,3.41196839,4319.9,4319.8,6.979]
[1757354666448,4.72486839,4319.9,4319.8,6.979]
[1757354668442,2.41,4319.9,4319.8,6.979]
[1757354668844,4.72486839,4319.9,4319.8,6.979]
[1757354669051,5.86233187,4319.9,4319.8,3.979]
[1757354669204,0.792,4319.4,4319.1,0.002]
[1757354669549,3.10713636,4319.4,4319.3,3.0]
[1757354669848,3.10713636,4319.4,4319.3,3.309]
[1757354670256,0.792,4319.4,4319.3,3.309]
[1757354671338,3.40693636,4319.4,4319.3,3.0]
[1757354671546,4.67533636,4319.4,4319.3,3.0]
[1757354672433,4.65533636,4319.4,4319.3,3.0]
[1757354673127,4.65533636,4319.4,4319.2,3.978]
[1757354673128,3.10718996,4319.3,4319.2,6.978]
[1757354673336,4.95608996,4319.3,4319.2,6.978]
[1757354673541,5.25588996,4319.3,4319.2,6.978]
[1757354673743,4.79058996,4319.3,4319.2,6.978]
[1757354675028,3.10724356,4319.2,4319.1,0.002]
[1757354675277,5.16542691,4319.2,4319.1,0.002]
[1757354675469,5.93052691,4319.2,4319.1,0.002]
[1757354676678,9.90752691,4319.2,4319.1,0.002]
[1757354677245,10.12241513,4319.2,4319.1,0.002]
[1757354679400,9.90752691,4319.2,4319.1,0.002]
[1757354680807,8.35164356,4319.2,4319.1,0.002]
[1757354681578,9.11674356,4319.2,4319.1,0.002]
[1757354682122,2.31519372,4319.3,4319.1,0.3103]
[1757354682320,2.31500884,4319.7,4319.1,0.7765]
[1757354682468,0.4653,4320.3,4319.2,2.78138999]
[1757354682469,2.31482417,4320.0,4319.2,2.78138999]
[1757354682664,3.976,4320.3,4319.3,0.8407031]
[1757354683019,3.10788156,4319.9,4319.8,0.3083]
[1757354683167,2.31588156,4319.9,4319.8,0.3083]
[1757354683822,0.792,4319.5,4319.4,3.976]
[1757354683999,0.9072,4319.5,4319.4,4.7505]
[1757354685409,0.001,4319.9,4319.4,8.082]
[1757354685619,0.001,4319.9,4319.5,1.50591809]
[1757354685784,0.001,4319.9,4319.5,4.50591809]
[1757354686128,0.792,4319.7,4319.4,3.976]
[1757354686305,0.9072,4319.5,4319.4,3.976]
[1757354686515,0.9072,4319.5,4319.4,4.7505]
[1757354687770,0.9072,4319.5,4319.4,4.2843]
[1757354689216,0.792,4319.4,4319.1,0.002]
[1757354689516,3.10724356,4319.2,4319.1,0.002]
[1757354689806,3.40704356,4319.2,4319.1,0.002]
[1757354690016,5.14074356,4319.2,4319.1,0.002]
[1757354691511,9.11474356,4319.2,4319.1,0.002]
[1757354692012,8.64944356,4319.2,4319.1,0.002]
[1757354693007,7.08124356,4319.2,4319.1,0.002]
[1757354693322,5.14074356,4319.2,4319.1,0.002]
[1757354693481,6.08038691,4319.2,4319.1,0.002]
[1757354696781,6.29497265,4319.2,4319.1,0.002]
[1757354701023,10.26797265,4319.2,4319.1,0.002]
[1757354701330,6.28824356,4319.2,4319.1,0.3058]
[1757354701513,7.08024356,4319.2,4319.1,0.3058]
[1757354701714,6.28824356,4319.2,4319.1,0.3058]
[1757354701914,7.08024356,4319.2,4319.1,0.3058]
[1757354702815,7.08024356,4319.2,4319.1,0.002]
[1757354703736,0.001,4319.5,4319.1,0.7417]
[1757354703921,0.001,4319.5,4319.2,0.4359]
[1757354704391,0.001,4319.5,4319.4,0.3038]
[1757354705101,0.001,4319.5,4319.4,0.7397]
[1757354705433,0.001,4319.5,4319.4,1.0712]
[1757354706287,0.001,4319.5,4319.4,0.7397]
[1757354706838,0.001,4319.5,4319.4,0.3038]
[1757354707810,0.001,4319.5,4319.4,0.99842051]
[1757354708236,0.001,4319.5,4319.4,1.43432051]
[1757354709301,0.793,4319.5,4319.4,0.99842051]
[1757354709642,4.64898276,4319.5,4319.4,0.69462051]
[1757354709809,4.64898276,4319.5,4319.1,0.002]
[1757354710012,3.10724356,4319.2,4319.1,0.002]
[1757354710226,0.792,4319.2,4319.1,0.4018]
[1757354710414,0.792,4319.2,4319.1,0.7056]
[1757354711045,3.10724356,4319.2,4319.1,0.002]
[1757354711247,5.09364356,4319.2,4319.1,0.002]
[1757354713047,9.06364356,4319.2,4319.1,0.002]
[1757354714612,9.27811304,4319.2,4319.1,0.002]
[1757354714819,9.40679261,4319.2,4319.1,0.002]
[1757354715018,10.57908825,4319.2,4319.1,0.002]
[1757354715905,10.57906857,4319.2,4319.1,0.002]
[1757354717475,2.31616376,4319.4,4319.1,0.002]
[1757354717476,0.001,4319.4,4319.1,0.7417]
[1757354717609,0.001,4319.4,4319.2,0.4359]
[1757354718062,0.001,4319.4,4319.1,0.688027]
[1757354718063,0.793,4319.4,4319.3,0.7397]
[1757354718278,0.001,4319.4,4319.3,0.7397]
[1757354718981,0.001,4319.4,4319.3,4.0293]
[1757354719270,0.001,4319.4,4319.3,4.38361312]
[1757354720624,0.001,4319.4,4319.3,1.38361312]
[1757354720946,0.001,4319.4,4319.3,0.7397]
[1757354721113,0.001,4319.4,4319.3,4.7087]
[1757354722448,0.001,4319.4,4319.3,7.7087]
[1757354722621,0.001,4319.4,4319.3,10.02388996]
[1757354723538,0.001,4319.4,4319.3,10.31348996]
[1757354723742,0.001,4319.4,4319.3,11.64602806]
[1757354724235,0.001,4319.9,4319.8,2.31492198]
[1757354724444,0.001,4319.9,4319.8,11.05992198]
[1757354724634,0.001,4319.9,4319.8,12.08922198]
[1757354726050,0.001,4319.9,4319.8,11.79962198]
[1757354726250,0.001,4319.9,4319.8,13.21108361]
[1757354728567,0.001,4319.9,4319.8,10.89616163]
[1757354728769,0.001,4319.9,4319.8,13.21108361]
[1757354730248,0.001,4319.9,4319.8,10.89616163]
[1757354730450,0.001,4319.9,4319.8,8.743]
[1757354731786,0.001,4319.9,4319.8,9.0294]
[1757354732107,0.02,4320.9,4319.8,9.0294]
[1757354732108,0.02,4320.9,4320.7,2.31443978]
[1757354732234,0.025,4321.8,4321.0,3.0]
[1757354732438,0.025,4321.8,4321.2,3.0]
[1757354732635,2.76964605,4321.7,4321.4,3.0]
[1757354732851,0.1152,4321.1,4321.0,2.3142791]
[1757354733062,0.1152,4321.1,4321.0,9.5666791]
[1757354733338,0.025,4321.8,4321.7,2.31390425]
[1757354733637,0.025,4321.8,4321.7,11.8196956]
[1757354733950,0.025,4321.8,4321.7,11.34330425]
[1757354734757,0.025,4321.8,4321.7,11.79900425]
[1757354736680,0.025,4321.8,4321.7,11.79800425]
[1757354737697,0.025,4321.8,4321.7,5.5191]
[1757354737895,0.025,4321.8,4321.7,9.1967]
[1757354738300,0.025,4321.8,4321.7,9.4831]
[1757354738800,0.025,4321.8,4321.7,11.79700425]
[1757354740110,0.025,4321.8,4321.7,12.26750425]
[1757354740682,0.025,4321.8,4321.7,11.79700425]
[1757354742169,0.025,4321.8,4321.7,5.2327]
[1757354742370,1.1225,4321.8,4321.7,5.2327]
[1757354742562,1.1225,4321.8,4321.7,9.1957]
[1757354742563,2.3017,4321.8,4321.7,9.1957]
[1757354742962,2.7574,4321.8,4321.7,5.2327]
[1757354743224,2.3017,4321.8,4321.7,9.1957]
[1757354744143,2.3017,4321.8,4321.7,11.50960425]
[1757354744914,0.817,4321.8,4321.7,11.50960425]
[1757354745121,0.817,4321.8,4321.7,11.79600425]
[1757354745465,0.817,4321.8,4321.7,9.1957]
[1757354745660,1.1225,4321.8,4321.7,9.1957]
[1757354745899,0.817,4321.8,4321.7,11.50960425]
[1757354746112,0.817,4321.8,4321.7,9.1957]
[1757354746315,1.1225,4321.8,4321.7,9.1957]
[1757354746514,2.7574,4321.8,4321.7,5.2327]
[1757354746720,2.7574,4321.8,4321.7,9.1947]
[1757354746914,3.26651808,4321.8,4321.7,9.1947]
[1757354747077,3.26651808,4321.8,4321.7,8.739]
[1757354748706,5.58036879,4321.8,4321.7,8.739]
[1757354749165,3.26651808,4321.8,4321.7,8.739]
[1757354749986,5.58036879,4321.8,4321.7,8.738]
[1757354750292,3.26651808,4321.8,4321.7,8.738]
[1757354750810,5.58036879,4321.8,4321.7,8.738]
[1757354751312,3.26651808,4321.8,4321.7,8.738]
[1757354751512,5.58036879,4321.8,4321.7,8.738]
[1757354752591,5.58136879,4321.8,4321.7,8.738]
[1757354753114,5.58136879,4321.8,4321.7,5.738]
[1757354754538,5.58136879,4321.8,4321.7,5.737]
[1757354754838,5.58136879,4321.8,4321.0,1.776]
[1757354754839,3.10622554,4321.1,4321.0,1.776]
[1757354755037,3.10622554,4321.1,4321.0,8.736]
[1757354755038,2.7324,4321.1,4321.0,8.736]
[1757354755348,2.7324,4321.1,4321.0,5.736]
[1757354755485,2.7324,4321.1,4321.0,1.776]
[1757354755486,5.04662554,4321.1,4321.0,1.776]
[1757354755690,2.2767,4321.1,4321.0,5.736]
[1757354755889,1.9712,4321.1,4321.0,5.736]
[1757354756145,0.792,4321.1,4321.0,5.736]
[1757354757430,3.10622554,4321.1,4321.0,5.736]
[1757354758026,4.59092554,4321.1,4321.0,5.736]
[1757354758394,2.2767,4321.1,4321.0,5.736]
[1757354758641,4.59092554,4321.1,4321.0,5.736]
[1757354758843,2.2767,4321.1,4321.0,5.736]
[1757354759044,1.1792,4321.1,4321.0,6.0224]
[1757354759247,0.02,4321.9,4321.0,6.0224]
[1757354759248,10.63905435,4321.8,4321.1,5.31420906]
[1757354759389,8.3252,4321.8,4321.2,3.96]
[1757354759725,3.10590892,4321.7,4321.2,3.96]
[1757354759886,4.28510892,4321.7,4321.2,3.96]
[1757354760086,1.9712,4321.7,4321.2,3.96]
[1757354760522,0.792,4321.7,4321.6,0.2864]
[1757354760722,0.792,4321.7,4321.6,4.2464]
[1757354760929,0.818,4321.8,4321.6,4.2464]
[1757354763729,0.818,4321.8,4321.6,4.6989]
[1757354763932,0.026,4321.8,4321.6,4.2464]
[1757354765443,0.026,4321.8,4321.6,7.01284047]
[1757354765632,0.026,4321.8,4321.6,4.6989]
[1757354766431,0.026,4321.8,4321.6,4.2464]
[1757354768760,0.026,4321.8,4321.7,5.76640425]
[1757354768912,0.026,4321.8,4321.7,3.4525]
[1757354769116,0.026,4321.8,4321.7,3.7621]
[1757354770053,0.026,4321.8,4321.7,3.3096]
[1757354773547,0.792,4321.6,4321.0,1.776]
[1757354773735,1.2401,4321.5,4321.1,6.957]
[1757354774081,1.2401,4321.4,4321.1,6.957]
[1757354774622,0.9072,4321.1,4321.0,1.776]
[1757354774822,2.9024,4321.1,4321.0,5.732]
[1757354775028,2.9024,4321.1,4321.0,8.732]
[1757354775249,2.9024,4321.1,4321.0,5.732]
[1757354775767,2.9024,4321.1,4321.0,8.732]
[1757354776279,1.214,4321.1,4321.0,8.732]
[1757354776478,2.9024,4321.1,4321.0,8.732]
[1757354776839,2.4541,4321.1,4321.0,8.732]
[1757354778070,0.9072,4321.1,4321.0,8.732]
[1757354778644,2.4541,4321.1,4321.0,8.732]
[1757354779070,0.1152,4321.1,4321.0,9.0416]
[1757354779291,0.026,4321.8,4321.1,3.0]
[1757354779490,0.026,4321.8,4321.4,2.31406488]
[1757354779784,0.026,4321.8,4321.7,0.3096]
[1757354780083,0.026,4321.8,4321.7,7.2646]
[1757354781769,0.026,4321.8,4321.7,6.955]
[1757354781983,0.026,4321.8,4321.7,11.18930615]
[1757354782345,0.026,4321.8,4321.7,8.8754019]
[1757354782543,0.026,4321.8,4321.7,8.4229019]
[1757354782744,0.026,4321.8,4321.7,10.73680615]
[1757354783999,0.026,4321.8,4321.7,8.4229019]
[1757354784958,0.026,4321.8,4321.7,6.955]
[1757354785166,1.2661,4321.8,4321.7,6.955]
[1757354785453,0.026,4321.8,4321.7,6.955]
[1757354785669,0.026,4321.8,4321.7,7.2636]
[1757354786282,0.026,4321.8,4321.7,9.57750425]
[1757354786591,0.026,4321.8,4321.7,10.76665447]
[1757354787098,0.026,4321.8,4321.7,8.45275022]
[1757354787552,0.026,4321.8,4321.7,8.14315022]
[1757354787898,0.026,4321.8,4321.7,8.45275022]
[1757354788120,0.026,4321.8,4321.7,10.76665447]
[1757354788254,0.026,4321.8,4321.7,8.45275022]
[1757354788771,0.026,4321.8,4321.7,10.76665447]
[1757354789180,0.026,4321.8,4321.7,10.99815447]
[1757354789424,0.026,4321.8,4321.7,10.76665447]
[1757354789773,0.026,4321.8,4321.7,8.45275022]
[1757354790006,0.026,4321.8,4321.7,7.2636]
[1757354790719,1.5729,4321.8,4321.7,6.954]
[1757354791061,1.5729,4321.8,4321.7,3.0]
[1757354791263,2.0172,4321.8,4321.7,6.953]
[1757354792400,1.5729,4321.8,4321.7,6.953]
[1757354793525,5.12305071,4321.8,4321.7,3.0]
[1757354793666,5.12305071,4321.8,4321.7,6.952]
[1757354793667,5.5581466,4321.8,4321.7,6.952]
[1757354794306,5.5581466,4321.8,4321.7,3.952]
[1757354794524,5.5581466,4321.8,4321.0,1.776]
[1757354794525,0.1152,4321.7,4321.0,1.776]
[1757354794716,3.39372554,4321.1,4321.0,1.776]
[1757354795003,4.95992554,4321.1,4321.0,5.728]
[1757354795205,2.6457,4321.1,4321.0,5.728]
[1757354795360,4.95992554,4321.1,4321.0,5.728]
[1757354795559,5.68733103,4321.1,4321.0,5.728]
[1757354795816,3.37310549,4321.1,4321.0,5.728]
[1757354796007,2.6457,4321.1,4321.0,5.728]
[1757354796223,4.95992554,4321.1,4321.0,5.728]
[1757354796763,2.6457,4321.1,4321.0,5.728]
[1757354797572,0.026,4321.8,4321.0,6.0138]
[1757354797779,0.026,4321.8,4321.1,5.31422252]
[1757354798085,0.026,4321.8,4321.2,6.26616821]
[1757354798285,0.818,4321.8,4321.2,6.26616821]
[1757354798519,0.818,4321.8,4321.7,0.2858]
[1757354798520,0.026,4321.8,4321.7,0.2858]
[1757354798674,0.3135,4321.8,4321.7,3.952]
[1757354799659,0.026,4321.8,4321.7,3.952]
[1757354799948,0.026,4321.8,4321.7,6.952]
[1757354800522,0.026,4321.8,4321.7,7.2378]
[1757354800806,2.2274,4321.8,4321.7,6.952]
[1757354801608,0.818,4321.8,4321.7,7.2378]
[1757354801834,0.818,4321.8,4321.7,6.952]
[1757354803358,2.6717,4321.8,4321.7,6.952]
[1757354804320,2.6717,4321.8,4321.7,6.95]
[1757354804755,2.6717,4321.8,4321.7,3.0]
[1757354804957,2.6717,4321.8,4321.7,6.95]
[1757354805157,4.98555071,4321.8,4321.7,6.95]
[1757354805355,0.792,4321.5,4321.0,1.776]
[1757354805572,0.792,4321.3,4321.2,3.0]
[1757354805774,2.2014,4321.3,4321.1,3.95]
[1757354805989,2.2014,4321.3,4321.2,3.0]
[1757354806362,0.792,4321.1,4321.0,1.776]
[1757354806579,0.792,4321.1,4321.0,6.0118]
[1757354806886,3.10607003,4321.4,4321.0,6.0118]
[1757354807056,0.792,4321.2,4321.0,6.0118]
[1757354807764,1.9139,4321.2,4321.0,5.726]
[1757354807945,1.4094,4321.1,4321.0,5.726]
[1757354808145,2.2014,4321.1,4321.0,5.726]
[1757354809091,0.792,4321.1,4321.0,6.0118]
[1757354810147,0.792,4321.1,4321.0,5.726]
[1757354810351,2.2014,4321.1,4321.0,5.726]
[1757354810549,4.51562554,4321.1,4321.0,1.776]
[1757354810749,4.51562554,4321.1,4321.0,5.725]
[1757354810750,5.29539822,4321.1,4321.0,5.725]
[1757354810976,4.95992554,4321.1,4321.0,5.725]
[1757354811799,4.95992554,4321.1,4321.0,1.776]
[1757354811951,4.95992554,4321.1,4321.0,5.725]
[1757354812567,4.95992554,4321.1,4320.8,0.002]
[1757354812568,2.31433266,4320.9,4320.8,0.002]
[1757354812770,2.31433266,4320.9,4320.8,3.95]
[1757354813073,5.69897848,4320.9,4320.8,3.95]
[1757354813263,5.69897848,4320.9,4320.8,0.002]
[1757354814088,5.91390449,4320.9,4320.8,0.002]
[1757354815295,9.64697848,4320.9,4320.8,0.002]
[1757354818527,5.69897848,4320.9,4320.8,0.002]
[1757354818692,9.64697848,4320.9,4320.8,0.002]
[1757354820598,5.25467848,4320.9,4320.8,0.002]
[1757354820823,9.20267848,4320.9,4320.8,0.002]
[1757354821023,9.64697848,4320.9,4320.8,0.002]
[1757354821326,8.2807,4321.5,4320.8,0.3139]
[1757354821488,2.31431838,4321.0,4320.8,0.3139]
[1757354821819,3.947,4321.4,4320.8,0.3139]
[1757354821820,2.3140687,4321.4,4320.8,0.3139]
[1757354822026,0.792,4321.1,4320.8,0.3139]
[1757354822322,2.31406488,4321.4,4320.8,0.3139]
[1757354822524,2.31423135,4321.1,4320.8,0.3139]
[1757354822723,0.792,4321.0,4320.8,0.3139]
[1757354823634,2.31423135,4321.1,4320.8,0.3139]
[1757354823635,0.792,4321.1,4320.8,0.3139]
[1757354823815,0.792,4321.1,4320.9,0.4661]
[1757354824016,0.792,4321.0,4320.8,0.42809]
[1757354824379,0.792,4321.1,4320.9,0.3119]
[1757354824822,0.792,4321.0,4320.9,0.3119]
[1757354825397,0.792,4321.0,4320.8,0.42809]
[1757354825398,0.1152,4320.9,4320.8,0.42809]
[1757354825599,4.82033266,4320.9,4320.8,0.002]
[1757354825828,0.9072,4320.9,4320.8,0.3139]
[1757354826141,0.9072,4320.9,4320.8,0.78]
[1757354827140,0.9072,4320.9,4320.8,0.3139]
[1757354827141,3.22153266,4320.9,4320.8,0.3139]
[1757354828037,4.68393266,4320.9,4320.8,0.002]
[1757354828642,5.86566015,4320.9,4320.8,0.002]
[1757354828844,4.68393266,4320.9,4320.8,0.002]
[1757354829434,5.12203266,4320.9,4320.8,0.002]
[1757354829716,4.68393266,4320.9,4320.8,0.002]
[1757354829916,3.22153266,4320.9,4320.8,0.3139]
[1757354830150,0.792,4320.9,4320.8,0.3139]
[1757354830827,3.10633266,4320.9,4320.8,0.3139]
[1757354831418,3.10633266,4320.9,4320.8,0.002]
[1757354831623,5.00683266,4320.9,4320.8,0.002]
[1757354831968,0.792,4320.9,4320.8,0.3139]
[1757354832336,3.10633266,4320.9,4320.8,0.3139]
[1757354832735,3.10633266,4320.9,4320.8,0.002]
[1757354833066,4.56873266,4320.9,4320.8,0.002]
[1757354833570,4.26703266,4320.9,4320.8,0.002]
[1757354833773,4.56873266,4320.9,4320.8,0.002]
[1757354834063,5.73893918,4320.9,4320.8,0.002]
[1757354834468,5.95382639,4320.9,4320.8,0.002]
[1757354834656,9.89882639,4320.9,4320.8,0.002]
[1757354835349,10.02779486,4320.9,4320.8,0.002]
[1757354841996,10.52283996,4320.9,4320.8,0.002]
[1757354843210,10.02779486,4320.9,4320.8,0.002]
[1757354843404,10.02879486,4320.9,4320.8,0.002]
[1757354847936,6.08379486,4320.9,4320.8,0.002]
[1757354848120,10.02679486,4320.9,4320.8,0.002]
[1757354848639,10.02679486,4320.9,4320.4,1e-08]
[1757354848640,3.10654692,4320.5,4320.4,1e-08]
[1757354848846,7.94602127,4320.5,4320.4,1e-08]
[1757354848994,9.84652127,4320.5,4320.4,1e-08]
[1757354850506,3.10676123,4320.1,4320.0,1e-08]
[1757354850836,3.10686839,4319.9,4319.8,1e-08]
[1757354850992,8.6766926,4319.9,4319.8,1e-08]
[1757354851192,10.2425926,4319.9,4319.8,1e-08]
[1757354857044,5.8391926,4319.9,4319.8,1e-08]
[1757354857245,9.7801926,4319.9,4319.8,1e-08]
[1757354857545,10.2310926,4319.9,4319.8,1e-08]
[1757354862241,10.2310926,4319.9,4319.8,0.00200001]
[1757354867912,10.2310926,4319.9,4318.8,0.4597]
[1757354867913,0.792,4318.7,4318.6,1e-08]
[1757354868094,7.04651161,4318.7,4318.6,1e-08]
[1757354868408,7.26068945,4318.7,4318.6,0.28800001]
[1757354869212,7.26068945,4318.7,4318.6,0.72270001]
[1757354869722,7.26068945,4318.7,4318.6,0.28800001]
[1757354872315,7.04651161,4318.7,4318.6,0.72270001]
[1757354873065,7.04651161,4318.7,4318.6,0.28800001]
[1757354873814,7.04651161,4318.7,4318.6,0.72270001]
[1757354874397,7.98270857,4318.7,4318.6,0.28800001]
[1757354876247,7.98270857,4318.7,4318.6,0.72270001]
[1757354876248,7.04551161,4318.7,4318.6,0.72270001]
[1757354878220,8.45171161,4318.7,4318.6,1e-08]
[1757354878421,8.6661048,4318.7,4318.6,1e-08]
[1757354878746,8.79474046,4318.7,4318.6,1e-08]
[1757354879049,9.65964987,4318.7,4318.6,1e-08]
[1757354879343,8.54464987,4318.7,4318.6,1e-08]
[1757354879644,8.54464987,4318.7,4318.6,0.28800001]
[1757354881072,8.54464987,4318.7,4318.6,1e-08]
[1757354881232,9.71854987,4318.7,4318.6,1e-08]
[1757354881433,9.71862768,4318.7,4318.6,1e-08]
[1757354882837,4.60672768,4318.7,4318.6,0.31420001]
[1757354883178,7.38761783,4318.7,4318.6,0.76880001]
[1757354883576,7.38761783,4318.7,4318.6,0.31420001]
[1757354884775,8.85051783,4318.7,4318.6,1e-08]
[1757354884978,8.56151783,4318.7,4318.6,1e-08]
[1757354885275,9.64921541,4318.7,4318.6,1e-08]
[1757354886503,8.47531541,4318.7,4318.6,1e-08]
[1757354887803,10.37791541,4318.7,4318.6,1e-08]
[1757354889612,3.10767247,4318.4,4318.3,1e-08]
[1757354889782,7.38677869,4318.4,4318.3,1e-08]
[1757354889958,7.38677869,4318.4,4318.0,0.002]
[1757354889959,3.10783335,4318.1,4318.0,0.002]
[1757354890164,7.25722611,4318.1,4318.0,0.002]
[1757354890675,8.72012611,4318.1,4318.0,0.002]
[1757354891028,8.84883442,4318.1,4318.0,0.002]
[1757354891187,9.28853442,4318.1,4318.0,0.002]
[1757354891384,9.28853442,4318.1,4317.6,0.002]
[1757354891385,3.10799425,4317.8,4317.6,0.002]
[1757354891692,3.10799425,4317.8,4317.1,0.022]
[1757354891693,0.792,4317.5,4317.1,0.022]
[1757354891896,3.10831613,4317.2,4317.1,0.022]
[1757354892092,7.04331613,4317.2,4317.1,0.022]
[1757354892312,7.04331613,4317.2,4317.1,0.3362]
[1757354893781,7.04331613,4317.2,4317.1,0.022]
[1757354893986,9.9992621,4317.2,4317.1,0.022]
[1757354896470,18.22716073,4317.2,4317.1,0.022]
[1757354897336,18.22716073,4317.2,4316.8,0.027]
[1757354897337,3.1084771,4316.9,4316.8,0.027]
[1757354897479,9.60007513,4316.9,4316.8,0.027]
[1757354897833,11.50267513,4316.9,4316.8,0.027]
[1757354898199,11.37426331,4316.9,4316.8,0.027]
[1757354898635,11.5025685,4316.9,4316.8,1e-08]
[1757354898976,3.10858442,4316.7,4316.6,1e-08]
[1757354899331,8.76920333,4316.7,4316.6,1e-08]
[1757354899486,10.67180333,4316.7,4316.6,1e-08]
[1757354900327,10.45808736,4316.7,4316.6,1e-08]
[1757354904829,3.10874543,4316.4,4316.3,1e-08]
[1757354905030,7.04274543,4316.4,4316.3,1e-08]
[1757354905326,7.04274543,4316.4,4315.1,0.02]
[1757354905327,3.10938969,4315.2,4315.1,0.02]
[1757354905530,7.04338969,4315.2,4315.1,0.02]
[1757354905825,8.50628969,4315.2,4315.1,0.02]
[1757354906129,8.50628969,4315.2,4314.8,0.025]
[1757354906130,3.10955081,4314.9,4314.8,0.025]
[1757354906339,7.04255081,4314.9,4314.8,1e-08]
[1757354906499,9.99486716,4314.9,4314.8,1e-08]
[1757354908328,10.43456716,4314.9,4314.8,1e-08]
[1757354910129,9.99486716,4314.9,4314.8,1e-08]
[1757354910329,2.31755081,4314.9,4314.8,0.76880001]
[1757354910513,2.31748458,4315.1,4314.8,0.82810001]
[1757354910828,0.792,4315.2,4314.9,0.5139]
[1757354911029,3.10939713,4315.2,4315.1,0.3142]
[1757354911183,2.31739713,4315.2,4315.1,0.3142]
[1757354911386,2.31739713,4315.2,4315.1,0.7813]
[1757354911600,3.10939713,4315.2,4315.1,0.7813]
[1757354911799,0.792,4315.2,4315.1,0.7813]
[1757354912003,3.10938969,4315.2,4315.1,0.7813]